bitfinex-derivatives/quotes_ETHF0:USTF0_20250828
["timestamp","ask_amount","ask_price","bid_price","bid_amount"]
[1756422062402,0.47167139,4506.3,4506.2,32.177]
[1756422062997,0.47205586,4506.3,4506.2,32.177]
[1756422063600,0.47201409,4506.3,4506.2,32.177]
[1756422065610,0.4786,4506.1,4506.0,0.3094]
[1756422065808,0.66411409,4506.1,4506.0,0.5344]
[1756422066907,0.66411409,4506.1,4505.1,1.98100958]
[1756422067110,0.4972,4505.5,4505.4,0.5021]
[1756422067307,0.18551409,4505.5,4505.4,0.7271]
[1756422069509,0.68271409,4505.5,4505.4,0.7271]
[1756422069708,0.68271409,4505.5,4505.4,0.225]
[1756422070111,0.68271409,4505.5,4505.1,0.3084]
[1756422070316,0.4972,4504.9,4504.8,0.5021]
[1756422070613,0.68271409,4504.9,4504.8,0.7271]
[1756422073310,0.2946,4504.8,4504.7,31.96]
[1756422073509,0.47984308,4504.8,4504.7,32.185]
[1756422074104,0.68244308,4504.8,4504.7,0.225]
[1756422074310,0.68244308,4504.8,4504.1,0.41052804]
[1756422074505,0.4972,4504.3,4504.2,0.7271]
[1756422074711,0.68244308,4504.3,4504.2,0.7271]
[1756422075713,0.18524308,4504.3,4504.2,0.7271]
[1756422076114,0.2946,4505.0,4504.2,0.7271]
[1756422076420,0.2946,4506.2,4504.8,0.1937]
[1756422076618,0.4972,4506.2,4506.1,0.3702]
[1756422076917,0.4972,4506.2,4506.0,0.116]
[1756422077118,0.4972,4506.2,4505.9,0.068]
[1756422077319,0.4972,4506.2,4505.9,0.2445]
[1756422078212,0.4972,4506.1,4506.0,0.3702]
[1756422079118,0.051,4507.8,4506.1,0.1765]
[1756422079316,0.2946,4507.6,4506.1,0.1765]
[1756422079618,0.2946,4507.4,4506.1,0.1765]
[1756422079816,0.2946,4507.2,4506.1,0.1765]
[1756422080119,1.19543288,4509.0,4506.1,0.99858]
[1756422080317,1.59391051,4509.5,4507.0,0.1765]
[1756422080318,0.2946,4508.8,4507.0,0.1765]
[1756422080614,0.55879842,4508.7,4507.2,0.1765]
[1756422080813,0.2946,4508.6,4507.2,0.1765]
[1756422082414,0.4972,4507.3,4506.4,0.3994]
[1756422082620,0.4972,4507.3,4505.5,0.99871]
[1756422082621,0.4972,4506.4,4506.3,0.4252]
[1756422082821,0.054,4509.0,4506.3,0.4252]
[1756422082822,0.22186,4508.4,4506.3,0.4252]
[1756422083015,0.2946,4508.2,4506.3,0.4252]
[1756422083216,0.22185001,4508.9,4506.3,0.4252]
[1756422083417,0.55861904,4508.8,4506.3,0.4252]
[1756422083620,0.55861904,4508.7,4506.3,0.4252]
[1756422083919,0.2946,4508.5,4506.4,0.1765]
[1756422084118,0.55861904,4508.4,4506.4,0.1765]
[1756422084320,0.85321904,4508.3,4506.4,0.1765]
[1756422084519,0.2946,4508.1,4506.4,0.1765]
[1756422085114,0.03,4508.7,4506.6,0.1765]
[1756422085322,0.2946,4508.5,4506.6,0.1765]
[1756422085521,0.2946,4508.3,4506.6,0.1765]
[1756422088218,0.4972,4506.7,4506.6,0.3702]
[1756422088422,0.2946,4508.7,4506.7,0.1765]
[1756422088623,0.2946,4508.5,4506.7,0.1765]
[1756422088924,0.4972,4506.8,4506.7,0.3702]
[1756422089121,0.68199972,4506.8,4506.7,0.1937]
[1756422089318,0.38739972,4506.8,4506.4,0.4015]
[1756422089518,0.4972,4506.5,4506.4,0.5952]
[1756422091422,0.4972,4506.5,4506.4,0.5952]
[1756422092526,0.2946,4508.7,4506.5,0.1765]
[1756422092826,0.2946,4508.5,4506.5,0.1765]
[1756422093129,0.2946,4508.3,4506.5,0.1765]
[1756422093322,0.2946,4508.1,4506.5,0.1765]
[1756422093522,0.2946,4507.9,4506.5,0.1765]
[1756422093724,0.18478553,4507.8,4506.5,0.1765]
[1756422093920,0.47938553,4507.7,4506.5,0.1765]
[1756422094121,0.2946,4507.7,4506.5,0.1765]
[1756422094429,0.2946,4507.5,4506.5,0.1765]
[1756422094628,0.2946,4507.3,4506.5,0.1765]
[1756422094928,0.4972,4507.1,4507.0,0.1937]
[1756422095226,0.68195824,4507.1,4507.0,0.1937]
[1756422095522,0.68195824,4507.1,4507.0,4.3701]
[1756422095523,0.18475824,4507.1,4507.0,4.3701]
[1756422095726,0.2946,4507.9,4507.0,4.41557]
[1756422095931,0.18471923,4507.8,4507.1,0.1764]
[1756422096129,0.5083,4507.8,4507.7,0.371]
[1756422096330,0.69297454,4507.8,4507.7,0.371]
[1756422097629,0.18467454,4507.8,4507.7,0.371]
[1756422097825,0.18461842,4507.8,4507.7,0.371]
[1756422098233,0.67801842,4507.8,4507.1,0.1773]
[1756422098433,0.4934,4507.4,4507.3,0.225]
[1756422098732,0.67801842,4507.4,4507.3,0.225]
[1756422099122,0.3057,4507.3,4506.7,0.1773]
[1756422099327,0.22731359,4509.6,4506.9,0.1773]
[1756422099522,1.27003606,4509.5,4506.9,0.1773]
[1756422099728,0.3057,4509.3,4507.0,0.1773]
[1756422099934,0.74250605,4509.2,4507.0,0.39935]
[1756422100131,1.04820605,4509.1,4507.1,0.1773]
[1756422100430,0.3057,4508.9,4507.1,0.1773]
[1756422100632,0.3057,4508.7,4507.1,0.1773]
[1756422100831,0.3057,4508.5,4507.1,0.1773]
[1756422101031,0.3057,4508.3,4507.1,0.1773]
[1756422101233,0.18459768,4508.2,4507.1,0.1773]
[1756422101538,0.3057,4508.0,4507.1,0.1773]
[1756422101729,0.18459768,4507.9,4507.1,0.1773]
[1756422101926,0.4934,4507.7,4507.6,0.2006]
[1756422102127,0.67799768,4507.7,4507.6,0.2006]
[1756422102523,0.67799768,4507.7,4507.6,0.3779]
[1756422102933,0.67799768,4507.7,4507.6,0.2006]
[1756422103133,0.67799768,4507.7,4507.3,0.1773]
[1756422103333,0.4934,4507.0,4506.9,0.3779]
[1756422103632,0.4934,4507.0,4506.9,0.6029]
[1756422104034,0.1877,4506.7,4506.6,0.4023]
[1756422104328,0.4934,4506.7,4506.6,0.6029]
[1756422105329,0.67840434,4506.7,4506.6,0.6029]
[1756422105634,0.3057,4506.6,4506.5,31.961]
[1756422105929,0.4934,4505.9,4505.8,0.6029]
[1756422106129,0.4934,4506.5,4506.4,0.3779]
[1756422106335,0.67863465,4506.5,4506.4,0.3779]
[1756422108631,0.18523465,4506.5,4506.4,4.3779]
[1756422108833,0.18523465,4506.5,4506.4,4.5998]
[1756422109029,1.59391051,4509.3,4506.4,4.5998]
[1756422109030,1.19543288,4509.2,4506.8,0.99842]
[1756422109234,1.59391051,4509.7,4507.0,0.99838]
[1756422109235,0.56019596,4509.1,4507.0,0.99838]
[1756422109430,0.56019596,4509.0,4507.6,0.3993]
[1756422109631,0.3057,4508.8,4507.7,0.132]
[1756422109833,0.3057,4508.6,4507.7,0.132]
[1756422112338,0.3057,4508.6,4507.8,0.39928]
[1756422112537,0.3057,4508.6,4507.7,0.132]
[1756422112727,0.3057,4508.6,4507.7,0.53129]
[1756422113038,0.225,4509.7,4507.7,0.53129]
[1756422113238,1.08720193,4509.6,4507.7,0.132]
[1756422113440,0.55971192,4509.5,4507.7,0.132]
[1756422113740,0.86541192,4509.4,4507.7,0.132]
[1756422113935,0.55971192,4509.3,4507.7,0.132]
[1756422114144,0.86541192,4509.2,4507.7,0.132]
[1756422114344,0.3057,4509.2,4507.7,0.132]
[1756422114535,0.3057,4509.0,4507.7,0.132]
[1756422121547,0.3057,4509.0,4507.8,0.39928]
[1756422121741,0.3057,4509.6,4507.8,0.39928]
[1756422122046,0.86497962,4509.5,4507.7,0.53129]
[1756422122242,0.3057,4509.3,4507.7,0.132]
[1756422122448,1.59391051,4510.8,4507.7,0.132]
[1756422122449,0.3057,4511.2,4507.8,0.22178]
[1756422122745,0.78088764,4511.1,4509.0,0.39917]
[1756422122941,0.3057,4510.9,4509.1,0.032]
[1756422123141,0.3057,4510.7,4509.1,0.65288]
[1756422123343,0.48244974,4511.6,4508.9,0.39918]
[1756422123539,0.55871396,4511.5,4508.6,72.752]
[1756422123744,0.4934,4509.1,4509.0,0.225]
[1756422124251,0.4934,4508.7,4508.6,32.177]
[1756422125049,0.4934,4508.7,4508.6,31.952]
[1756422127349,0.4934,4508.7,4507.3,1.98100958]
[1756422127350,0.4836,4508.2,4508.1,0.225]
[1756422127542,0.199,4508.2,4508.0,0.225]
[1756422127738,0.2846,4508.1,4508.0,0.225]
[1756422127945,0.2846,4509.6,4507.0,31.949]
[1756422128245,0.55855943,4509.5,4507.1,0.44681]
[1756422128445,0.55855943,4509.4,4507.1,0.44681]
[1756422128647,0.55855943,4509.3,4507.1,0.225]
[1756422128843,0.2846,4509.2,4507.2,0.22181]
[1756422129042,0.50642,4509.2,4507.2,0.22181]
[1756422129247,0.2846,4509.2,4507.2,0.22181]
[1756422129442,0.22182,4509.1,4507.2,0.22181]
[1756422129642,0.199,4507.2,4507.1,0.225]
[1756422129950,0.4836,4507.2,4507.1,0.225]
[1756422130151,0.2846,4507.1,4507.0,31.949]
[1756422131049,0.199,4506.9,4506.8,0.225]
[1756422131247,0.4836,4506.9,4506.8,0.225]
[1756422131445,0.199,4506.9,4506.5,0.226]
[1756422131649,0.4836,4506.4,4505.4,31.95]
[1756422131852,0.2846,4506.3,4505.5,0.44788]
[1756422132148,0.4836,4506.3,4505.5,0.44788]
[1756422132347,0.4836,4506.3,4505.5,0.226]
[1756422132551,0.4836,4506.3,4505.5,0.22193]
[1756422132745,0.4836,4505.5,4505.4,31.95]
[1756422132940,0.4836,4505.5,4505.4,32.176]
[1756422134052,0.049,4507.3,4505.4,32.176]
[1756422134551,0.2846,4507.1,4505.4,32.176]
[1756422134746,0.22191,4507.2,4505.4,32.176]
[1756422134955,0.2846,4508.2,4505.4,32.176]
[1756422135149,0.58015786,4508.1,4505.4,32.176]
[1756422135350,0.55815786,4508.0,4505.4,32.176]
[1756422135547,0.55815786,4507.9,4505.4,32.176]
[1756422135748,0.2846,4507.7,4505.4,32.176]
[1756422135949,0.55815786,4507.6,4505.4,32.176]
[1756422136148,0.55815786,4507.5,4505.4,32.176]
[1756422136353,0.2846,4507.9,4505.4,32.176]
[1756422136555,33.14743288,4508.4,4505.1,0.39952]
[1756422136556,0.199,4505.5,4505.1,0.226]
[1756422136756,0.049,4507.2,4505.2,0.39951]
[1756422137056,0.2846,4507.1,4505.1,0.226]
[1756422137652,0.2846,4507.1,4505.1,0.62552]
[1756422137950,0.2846,4507.1,4505.1,0.226]
[1756422138357,0.2846,4507.1,4505.1,0.62552]
[1756422138655,0.049,4507.2,4505.1,0.62552]
[1756422139155,0.2846,4508.2,4505.1,0.62552]
[1756422139354,0.2846,4508.0,4505.3,0.3995]
[1756422139554,0.2846,4507.8,4505.4,0.3995]
[1756422139752,0.55637292,4507.7,4505.4,0.3995]
[1756422139953,0.55637292,4507.6,4505.4,0.6214]
[1756422140148,0.2846,4507.7,4505.1,0.226]
[1756422140353,0.2846,4507.5,4505.2,0.11]
[1756422140657,0.22189,4507.8,4505.2,0.73141]
[1756422140858,0.2846,4507.6,4505.3,0.2219]
[1756422141055,0.2846,4507.6,4505.2,0.11]
[1756422141056,0.2846,4507.4,4505.1,0.043]
[1756422141758,0.22191,4507.3,4505.1,0.043]
[1756422142058,0.22192,4507.2,4505.1,0.043]
[1756422142259,0.5065,4507.8,4505.1,0.043]
[1756422142460,0.55599312,4507.7,4505.1,0.043]
[1756422142653,0.199,4505.2,4504.9,0.39954]
[1756422142855,0.2846,4504.9,4504.1,0.10212804]
[1756422143057,0.2846,4504.9,4504.2,0.226]
[1756422143362,0.4836,4504.9,4504.2,0.226]
[1756422144659,0.2846,4506.3,4504.2,0.226]
[1756422144862,0.049,4506.4,4504.2,0.226]
[1756422145055,0.2846,4506.3,4504.2,0.226]
[1756422145358,0.2846,4506.3,4504.2,0.6256]
[1756422145558,0.2846,4506.3,4504.3,0.39959]
[1756422145959,0.049,4506.4,4504.3,0.39959]
[1756422146160,0.2846,4506.3,4504.3,0.39959]
[1756422146564,0.009,4506.5,4504.3,0.39959]
[1756422146958,0.2846,4506.4,4504.7,0.39955]
[1756422147157,0.2846,4506.6,4504.9,0.39954]
[1756422147362,0.2846,4507.2,4505.2,0.39951]
[1756422147562,0.03,4507.3,4505.2,0.39951]
[1756422148160,31.952,4508.4,4505.2,0.39951]
[1756422148361,1.00313148,4508.2,4505.0,0.39953]
[1756422148564,0.2846,4508.0,4505.1,0.39952]
[1756422148865,0.2846,4507.8,4504.8,0.226]
[1756422149062,0.2846,4507.6,4505.2,0.39951]
[1756422149258,0.2219,4508.1,4505.2,0.39951]
[1756422149464,0.55535798,4508.0,4505.2,0.39951]
[1756422149766,0.55535798,4508.0,4504.8,0.226]
[1756422149767,0.55535798,4507.9,4505.1,0.39952]
[1756422149962,0.2846,4507.7,4505.1,0.39952]
[1756422150167,0.2846,4507.9,4505.1,0.39952]
[1756422150364,0.2846,4507.7,4504.9,0.39953]
[1756422150570,0.2846,4507.5,4504.1,0.10212804]
[1756422150868,0.6194218,4507.4,4504.3,0.39959]
[1756422151072,0.2846,4507.2,4504.2,0.039]
[1756422151265,0.2846,4507.0,4504.3,0.226]
[1756422151666,0.22194,4506.9,4504.3,0.226]
[1756422151867,0.2846,4507.2,4504.3,0.226]
[1756422152062,0.2846,4507.0,4504.3,0.226]
[1756422152262,0.2846,4507.0,4504.3,0.62559]
[1756422152466,0.05,4507.3,4504.4,0.39958]
[1756422152668,0.2846,4507.1,4504.4,0.39958]
[1756422152969,0.2846,4506.9,4504.3,0.62559]
[1756422153176,0.22194,4507.2,4504.4,0.39958]
[1756422153475,0.556012,4507.1,4504.4,0.39958]
[1756422153672,0.2846,4506.9,4504.3,0.226]
[1756422153871,0.22194,4507.2,4504.3,0.226]
[1756422154075,0.84062078,4507.1,4504.3,0.226]
[1756422154276,0.55602078,4507.0,4504.3,0.226]
[1756422154477,0.2846,4506.9,4504.4,0.39958]
[1756422154673,0.2846,4506.7,4504.4,0.39958]
[1756422154874,0.2846,4507.1,4504.4,0.39958]
[1756422155077,0.2846,4506.9,4504.4,0.39958]
[1756422155278,0.55641564,4506.8,4504.4,0.39958]
[1756422155576,0.2846,4506.6,4504.4,0.39958]
[1756422155776,0.2846,4507.1,4504.4,0.39958]
[1756422155977,0.55680208,4507.0,4504.4,0.39958]
[1756422156179,0.55680208,4506.9,4504.4,0.39958]
[1756422156374,0.55680208,4506.8,4504.4,0.39958]
[1756422156682,0.297,4506.6,4504.4,0.39958]
[1756422156877,0.297,4506.4,4504.4,0.39958]
[1756422157183,0.22194,4507.1,4504.4,0.39958]
[1756422157481,0.55772856,4507.0,4504.4,0.39958]
[1756422157670,0.55772856,4506.9,4504.5,0.39957]
[1756422157875,0.297,4506.7,4504.5,0.39957]
[1756422158077,0.297,4506.5,4504.3,0.62559]
[1756422158282,0.297,4506.3,4504.3,0.62559]
[1756422158578,0.297,4507.1,4504.4,0.62151999]
[1756422158784,0.297,4506.9,4504.4,0.22193999]
[1756422159083,0.297,4506.7,4504.3,0.226]
[1756422159278,0.297,4506.5,4504.4,0.22193999]
[1756422159484,0.297,4506.3,4504.4,0.22193999]
[1756422159683,1.19543288,4507.1,4504.4,0.22193999]
[1756422159684,0.297,4506.1,4504.4,0.22193999]
[1756422159987,0.297,4506.9,4504.4,0.22193999]
[1756422160278,0.55858332,4506.8,4504.5,0.22193999]
[1756422160484,0.297,4506.6,4504.3,0.226]
[1756422160679,0.297,4506.6,4504.1,0.10212804]
[1756422160680,0.297,4506.4,4504.4,0.22193999]
[1756422160880,0.2078,4504.6,4504.5,0.043]
[1756422161079,0.5048,4504.6,4504.5,0.043]
[1756422161983,0.2078,4504.6,4504.4,0.226]
[1756422162179,0.297,4506.0,4504.4,0.226]
[1756422162386,0.5048,4504.5,4504.4,0.226]
[1756422163487,0.5048,4504.5,4504.1,0.10212804]
[1756422163688,0.5048,4504.2,4504.1,0.10212804]
[1756422166084,0.55845223,4504.2,4502.7,0.226]
[1756422166290,0.297,4504.0,4502.7,0.226]
[1756422169589,0.2078,4502.8,4502.7,0.226]
[1756422169790,0.5048,4502.8,4502.7,0.226]
[1756422170491,0.5048,4502.8,4502.1,1.51038948]
[1756422170690,0.297,4502.8,4502.2,0.226]
[1756422171392,0.5048,4502.8,4502.2,0.226]
[1756422172793,0.5048,4502.8,4502.2,0.62578]
[1756422173686,0.052,4504.7,4502.4,0.39976]
[1756422173885,0.77834837,4504.6,4502.4,0.39976]
[1756422174089,0.297,4504.4,4502.7,0.39973]
[1756422174293,0.297,4504.2,4502.8,0.226]
[1756422174591,0.297,4504.0,4502.8,0.226]
[1756422175092,0.297,4504.0,4502.8,0.62572]
[1756422175288,0.297,4504.5,4502.8,0.62572]
[1756422175493,0.297,4504.3,4502.8,0.62572]
[1756422175694,0.297,4504.1,4502.8,0.62572]
[1756422175893,1.19543288,4505.2,4503.0,0.39971]
[1756422176088,0.297,4505.0,4503.0,0.99928]
[1756422176290,1.36243288,4506.1,4503.5,0.39966]
[1756422176489,0.55629992,4506.0,4503.6,0.47865]
[1756422176690,0.55629992,4505.9,4503.7,0.39965]
[1756422176893,0.297,4505.8,4503.7,0.39965]
[1756422177088,0.297,4505.6,4503.6,0.079]
[1756422177287,0.297,4505.4,4503.6,0.30099]
[1756422177483,0.297,4505.2,4503.6,0.70064]
[1756422177789,0.22199,4505.7,4503.7,0.39964]
[1756422177993,0.297,4505.5,4503.7,0.39964]
[1756422178182,0.297,4505.3,4503.6,0.079]
[1756422178383,0.297,4505.1,4503.7,0.39965]
[1756422178583,0.297,4505.9,4503.7,0.62163]
[1756422178789,0.297,4505.7,4503.7,0.39965]
[1756422179094,0.55653382,4505.6,4503.7,0.39965]
[1756422179294,0.297,4505.4,4503.6,0.079]
[1756422179497,0.297,4505.2,4503.6,0.47865]
[1756422179697,1.53835375,4506.1,4503.6,0.47865]
[1756422179891,0.297,4505.9,4503.7,0.22198]
[1756422180091,0.297,4505.7,4503.7,0.62162]
[1756422180288,0.297,4505.5,4503.6,0.47865]
[1756422180488,0.2078,4503.8,4503.1,40.8]
[1756422180694,0.2078,4503.3,4503.2,0.226]
[1756422180893,0.2078,4503.3,4501.9,0.99952]
[1756422180894,0.5048,4503.3,4502.3,0.39976]
[1756422181197,0.5048,4503.3,4502.4,0.226]
[1756422181495,0.024,4505.0,4502.2,40.8]
[1756422181700,1.07585771,4504.9,4502.3,0.226]
[1756422181892,0.297,4504.7,4502.3,0.226]
[1756422182093,0.297,4504.5,4502.5,0.39975]
[1756422182394,0.29372722,4504.3,4502.5,0.39975]
[1756422182587,0.5568177,4504.2,4502.6,0.0028]
[1756422182794,0.039,4504.7,4502.7,0.226]
[1756422182991,0.77891553,4504.6,4502.7,0.226]
[1756422183192,0.2078,4502.8,4502.7,0.0045]
[1756422183499,0.2078,4502.8,4502.1,42.31038948]
[1756422183500,0.2078,4502.8,4502.3,0.0028]
[1756422183896,0.2078,4502.8,4502.2,0.226]
[1756422184388,0.2078,4502.3,4502.2,0.2333]
[1756422184593,0.5048,4502.3,4502.2,0.2333]
[1756422186195,0.5048,4502.3,4502.1,1.51038948]
[1756422186398,0.2078,4502.3,4502.2,0.0047]
[1756422186900,0.2078,4502.3,4502.1,1.73638948]
[1756422187100,1.23443288,4504.7,4502.1,1.73638948]
[1756422187101,0.513,4502.2,4502.1,1.73638948]
[1756422187305,0.513,4502.2,4502.1,1.73928948]
[1756422187498,0.513,4502.2,4502.1,1.74108948]
[1756422188210,0.3087,4504.6,4502.1,1.74108948]
[1756422188509,0.55731725,4504.5,4502.1,1.74108948]
[1756422188808,0.3087,4504.3,4502.1,1.74108948]
[1756422189010,0.3087,4504.1,4502.2,0.0018]
[1756422189301,0.3087,4503.9,4502.2,0.0018]
[1756422189506,0.3087,4503.7,4502.2,0.0018]
[1756422194209,0.55832577,4503.6,4502.2,0.0018]
[1756422194513,0.3087,4503.7,4502.2,0.0018]
[1756422196009,0.55837051,4503.6,4502.2,0.0018]
[1756422196214,0.3087,4504.3,4502.2,0.0018]
[1756422196416,0.3087,4504.1,4502.2,0.0018]
[1756422196618,0.3087,4503.9,4502.2,0.0018]
[1756422196908,0.3087,4503.7,4502.2,0.0018]
[1756422197114,0.55836221,4503.6,4502.2,0.0018]
[1756422197410,0.3087,4503.5,4502.2,0.0018]
[1756422197615,0.2043,4502.3,4502.2,0.005]
[1756422197816,0.513,4502.3,4502.2,0.2331]
[1756422198209,0.513,4502.3,4502.2,0.2341]
[1756422198410,0.513,4502.3,4502.2,0.2331]
[1756422198610,0.052,4504.3,4502.3,0.0031]
[1756422198810,0.86680002,4504.2,4502.3,0.0031]
[1756422199006,0.3087,4504.0,4502.3,0.0031]
[1756422199218,0.3087,4503.8,4502.3,0.0031]
[1756422199516,0.3087,4503.6,4502.3,0.0031]
[1756422200015,0.3087,4503.6,4502.5,0.0031]
[1756422200912,0.26507,4503.5,4502.1,1.51038948]
[1756422201107,0.513,4501.9,4501.7,1.98100958]
[1756422201311,0.513,4501.9,4501.0,0.0031]
[1756422201312,0.2043,4501.1,4501.0,0.0081]
[1756422201512,0.513,4501.1,4501.0,0.0081]
[1756422201912,0.043,4503.4,4501.0,0.0081]
[1756422201913,0.053,4503.2,4501.0,0.005]
[1756422202116,0.3087,4503.0,4501.1,0.0031]
[1756422202317,0.3087,4502.8,4501.2,0.0031]
[1756422202517,0.3087,4502.8,4501.4,0.0031]
[1756422202717,0.3087,4502.8,4501.6,0.0031]
[1756422202914,0.3087,4503.7,4501.7,0.22210999]
[1756422203120,0.3087,4503.5,4501.8,0.0031]
[1756422203320,0.3087,4503.3,4501.9,0.0031]
[1756422203522,0.3087,4503.3,4501.9,0.22518]
[1756422204028,0.2043,4502.0,4501.9,0.0081]
[1756422204222,0.513,4502.0,4501.9,0.005]
[1756422204920,0.021,4503.9,4502.0,0.4029]
[1756422205127,0.55774953,4503.8,4502.0,0.4029]
[1756422205326,0.55774953,4503.7,4502.0,0.0031]
[1756422205527,0.86644953,4503.6,4502.0,0.0031]
[1756422205840,0.513,4502.1,4502.0,0.0081]
[1756422206021,0.513,4502.1,4502.0,0.2351]
[1756422206330,0.513,4502.1,4502.0,0.232]
[1756422207028,0.513,4502.1,4502.0,0.2351]
[1756422207428,0.2043,4502.1,4501.7,0.39982]
[1756422207626,0.513,4501.9,4501.8,0.232]
[1756422207831,0.513,4501.9,4501.8,0.2351]
[1756422208731,0.3087,4501.9,4501.8,0.2351]
[1756422208927,0.513,4502.1,4502.0,0.4048]
[1756422209132,0.513,4502.1,4502.0,0.4079]
[1756422209428,0.513,4502.1,4501.8,0.62681]
[1756422209623,0.513,4502.1,4501.8,0.227]
[1756422210027,0.513,4502.1,4501.9,0.227]
[1756422210541,0.2043,4502.1,4502.0,0.005]
[1756422210843,0.2043,4502.1,4502.0,0.4079]
[1756422211143,0.3087,4504.0,4502.4,0.39976]
[1756422211439,0.3087,4503.8,4502.4,0.40286]
[1756422211629,0.3087,4503.6,4502.4,0.40286]
[1756422211836,31.988,4504.2,4502.4,0.40286]
[1756422212031,0.55885929,4504.1,4502.4,0.40286]
[1756422212239,0.55885929,4504.0,4502.6,0.39974]
[1756422212438,0.513,4503.0,4502.9,0.40472]
[1756422212640,0.3087,4503.0,4502.9,0.40782]
[1756422212838,0.3087,4503.0,4502.9,0.0081]
[1756422214040,0.513,4503.0,4502.9,0.0081]
[1756422217343,0.2909,4505.0,4502.9,0.0031]
[1756422217544,0.4938,4503.4,4503.3,0.40748]
[1756422217737,0.4938,4503.4,4503.3,0.63448]
[1756422218035,0.4938,4503.4,4503.3,0.2348]
[1756422218840,0.2909,4503.3,4503.2,0.39969]
[1756422219048,0.4938,4502.7,4502.6,0.40754]
[1756422219238,0.051,4505.1,4502.8,0.39972]
[1756422219543,0.4938,4502.9,4502.6,0.39974]
[1756422219841,0.4938,4502.8,4502.7,0.227]
[1756422220238,0.4938,4502.8,4502.4,40.803]
[1756422220539,0.051,4505.1,4502.9,0.39972]
[1756422220840,0.2909,4503.1,4503.0,0.63451]
[1756422221041,0.2029,4503.4,4503.3,0.40448]
[1756422221243,0.2029,4503.4,4503.3,0.40748]
[1756422221244,0.4938,4503.4,4503.3,0.40748]
[1756422221442,1.19543288,4505.8,4503.8,0.003]
[1756422221637,1.19543288,4505.8,4503.1,0.99925]
[1756422221638,0.55830588,4505.7,4504.1,0.39961]
[1756422221838,0.2029,4504.3,4504.2,0.1248]
[1756422222140,0.2909,4504.3,4504.2,0.1278]
[1756422222741,0.4938,4504.3,4504.2,0.1278]
[1756422223547,0.4938,4504.3,4503.6,1.98400958]
[1756422223748,0.4938,4503.7,4503.6,0.40746]
[1756422223947,0.4938,4503.7,4503.6,0.63446]
[1756422224248,0.4938,4503.7,4503.6,41.43446]
[1756422224644,0.2909,4504.3,4504.2,0.0048]
[1756422224945,0.2909,4504.3,4504.2,0.2348]
[1756422225335,0.4938,4504.3,4504.2,0.227]
[1756422226350,0.051,4506.2,4504.2,0.227]
[1756422226551,0.4938,4504.3,4504.2,0.227]
[1756422227451,0.4938,4504.3,4504.2,0.2348]
[1756422230741,0.4938,4504.3,4504.2,0.2318]
[1756422231351,0.2029,4504.3,4504.2,0.227]
[1756422231751,0.2029,4503.7,4503.6,40.803]
[1756422231952,0.4938,4503.7,4503.6,41.029]
[1756422232248,0.4938,4503.7,4503.6,41.42866]
[1756422232450,0.2029,4504.1,4504.0,0.40442]
[1756422232649,0.4938,4504.1,4504.0,0.63342]
[1756422232851,0.4938,4504.5,4504.4,0.40738]
[1756422233054,0.2909,4504.5,4504.4,0.63338]
[1756422233252,8.926,4506.9,4504.6,0.40257]
[1756422233550,0.2909,4506.7,4504.6,0.40257]
[1756422233745,0.73385323,4506.6,4504.6,0.40257]
[1756422233950,0.2909,4506.4,4504.6,0.40257]
[1756422234153,0.18852677,4506.3,4504.6,0.40257]
[1756422234356,0.2909,4506.1,4504.6,0.40257]
[1756422234557,0.2029,4505.1,4505.0,0.0048]
[1756422234753,0.68232677,4505.1,4505.0,0.2338]
[1756422235252,0.4938,4505.1,4505.0,0.2338]
[1756422235451,0.2029,4505.1,4505.0,0.0048]
[1756422235652,0.4938,4505.1,4505.0,0.226]
[1756422235856,0.4938,4505.1,4505.0,0.2338]
[1756422237056,31.987,4507.0,4505.2,0.39951]
[1756422237057,0.2909,4506.9,4505.2,0.39951]
[1756422237253,0.2029,4505.4,4505.3,0.4043]
[1756422237452,1.19543288,4508.2,4505.3,0.003]
[1756422237655,0.73369382,4507.9,4506.1,0.68753]
[1756422237856,0.2029,4506.4,4506.3,0.478]
[1756422238057,0.39138276,4506.4,4506.3,0.567]
[1756422238554,0.2029,4506.4,4506.3,0.567]
[1756422239555,0.4938,4506.4,4506.3,0.567]
[1756422243163,0.4938,4506.4,4506.3,0.089]
[1756422243360,0.68210637,4506.4,4506.3,0.089]
[1756422244253,31.976,4508.9,4506.3,0.089]
[1756422244254,1.19543288,4509.0,4506.6,0.1899]
[1756422244552,1.02405002,4508.9,4506.7,0.2881]
[1756422244759,0.73315002,4508.8,4506.8,0.226]
[1756422244958,0.2029,4507.0,4506.9,0.525]
[1756422245155,0.4938,4507.0,4506.9,0.489]
[1756422245358,0.4938,4507.0,4506.3,41.19941]
[1756422245556,0.4938,4506.5,4506.4,0.704]
[1756422245955,0.1801481,4509.2,4506.4,0.704]
[1756422246155,0.73286508,4509.1,4506.5,0.2911]
[1756422246359,0.22183001,4509.4,4506.5,0.2911]
[1756422246360,0.3091,4508.9,4506.5,0.2911]
[1756422246560,0.3091,4508.7,4506.5,0.2911]
[1756422246756,0.4995,4506.6,4506.5,0.4863]
[1756422246960,0.4995,4506.6,4506.5,0.7123]
[1756422247155,0.17372123,4509.3,4506.6,0.2911]